{"text_format":"3","workbook":"xlsx","n_sheets":4,"sheets":["Sommaire","Actif","Passif","Catégories"],"not_rendered":{"defined_names":10},"read":"whole","date_system":"1900"}

{"sheet":"Sommaire","index":0,"n_rows":12,"n_cols":4,"rows_kept":12}
[null,"Bilan"]
[null,null,{"$f":"\"Exercice \"&YEAR(TODAY())-1","v":"Exercice 2016"},{"$f":"\"Exercice \"&YEAR(TODAY())","v":"Exercice 2017"}]
[null,"Type d’actif","Année précédente","Année en cours"]
[null,"Actif courant",{"$f":"SUMIFS(Actif[Année précédente],Actif[Type d’actif],Tableau_de_bord[[#This Row],[Type d’actif]])+SUMIFS(Passif[Année précédente],Passif[Type de passif],Tableau_de_bord[[#This Row],[Type d’actif]])","v":600},{"$f":"SUMIFS(Actif[Année en cours],Actif[Type d’actif],Tableau_de_bord[[#This Row],[Type d’actif]])+SUMIFS(Passif[Année en cours],Passif[Type de passif],Tableau_de_bord[[#This Row],[Type d’actif]])","v":600}]
[null,"Actif immobilisé",{"$f":"SUMIFS(Actif[Année précédente],Actif[Type d’actif],Tableau_de_bord[[#This Row],[Type d’actif]])+SUMIFS(Passif[Année précédente],Passif[Type de passif],Tableau_de_bord[[#This Row],[Type d’actif]])","v":{"v":-100,"d":"-100 "}},{"$f":"SUMIFS(Actif[Année en cours],Actif[Type d’actif],Tableau_de_bord[[#This Row],[Type d’actif]])+SUMIFS(Passif[Année en cours],Passif[Type de passif],Tableau_de_bord[[#This Row],[Type d’actif]])","v":{"v":-85,"d":"-85 "}}]
[null,"Autre actif",{"$f":"SUMIFS(Actif[Année précédente],Actif[Type d’actif],Tableau_de_bord[[#This Row],[Type d’actif]])+SUMIFS(Passif[Année précédente],Passif[Type de passif],Tableau_de_bord[[#This Row],[Type d’actif]])","v":0},{"$f":"SUMIFS(Actif[Année en cours],Actif[Type d’actif],Tableau_de_bord[[#This Row],[Type d’actif]])+SUMIFS(Passif[Année en cours],Passif[Type de passif],Tableau_de_bord[[#This Row],[Type d’actif]])","v":0}]
[null,"Passif courant",{"$f":"SUMIFS(Actif[Année précédente],Actif[Type d’actif],Tableau_de_bord[[#This Row],[Type d’actif]])+SUMIFS(Passif[Année précédente],Passif[Type de passif],Tableau_de_bord[[#This Row],[Type d’actif]])","v":500},{"$f":"SUMIFS(Actif[Année en cours],Actif[Type d’actif],Tableau_de_bord[[#This Row],[Type d’actif]])+SUMIFS(Passif[Année en cours],Passif[Type de passif],Tableau_de_bord[[#This Row],[Type d’actif]])","v":350}]
[null,"Passif à long terme",{"$f":"SUMIFS(Actif[Année précédente],Actif[Type d’actif],Tableau_de_bord[[#This Row],[Type d’actif]])+SUMIFS(Passif[Année précédente],Passif[Type de passif],Tableau_de_bord[[#This Row],[Type d’actif]])","v":0},{"$f":"SUMIFS(Actif[Année en cours],Actif[Type d’actif],Tableau_de_bord[[#This Row],[Type d’actif]])+SUMIFS(Passif[Année en cours],Passif[Type de passif],Tableau_de_bord[[#This Row],[Type d’actif]])","v":0}]
[null,"Capitaux propres",{"$f":"SUMIFS(Actif[Année précédente],Actif[Type d’actif],Tableau_de_bord[[#This Row],[Type d’actif]])+SUMIFS(Passif[Année précédente],Passif[Type de passif],Tableau_de_bord[[#This Row],[Type d’actif]])","v":0},{"$f":"SUMIFS(Actif[Année en cours],Actif[Type d’actif],Tableau_de_bord[[#This Row],[Type d’actif]])+SUMIFS(Passif[Année en cours],Passif[Type de passif],Tableau_de_bord[[#This Row],[Type d’actif]])","v":350}]
[null,"Total de l’actif",{"$f":"Actif[[#Totals],[Année précédente]]","v":500},{"$f":"Actif[[#Totals],[Année en cours]]","v":515}]
[null,"Total du passif et capitaux propres",{"$f":"Passif[[#Totals],[Année précédente]]","v":500},{"$f":"Passif[[#Totals],[Année en cours]]","v":700}]
[null,"Solde",{"$f":"C10-C11","v":0},{"$f":"D10-D11","v":{"v":-185,"d":"-185 "}}]

{"sheet":"Actif","index":1,"n_rows":14,"n_cols":5,"rows_kept":14}
[null,"Actif"]
[{"$nulls":3},{"$f":"ANNÉE_EC","v":"Exercice 2016"},{"$f":"ANNÉE_EC_2","v":"Exercice 2017"}]
[null,"Type d’actif","Description","Année précédente","Année en cours"]
[null,"Actif courant","Trésorerie",600,600]
[null,"Actif courant","Investissements"]
[null,"Actif courant","Stocks"]
[null,"Actif courant","Ventes"]
[null,"Actif courant","Charges prépayées"]
[null,"Actif immobilisé","Biens immobiliers et équipements"]
[null,"Actif immobilisé","Améliorations locatives"]
[null,"Actif immobilisé","Actions et autres investissements"]
[null,"Actif immobilisé","Moins l’amortissement cumulé (valeur négative)",{"v":-100,"d":"-100 "},{"v":-85,"d":"-85 "}]
[null,"Autre actif","Dons"]
[null,"Total de l’actif",null,{"$f":"SUBTOTAL(109,Actif[Année précédente])","v":500},{"$f":"SUBTOTAL(109,Actif[Année en cours])","v":515}]

{"sheet":"Passif","index":2,"n_rows":12,"n_cols":5,"rows_kept":12}
[null,"Passif"]
[{"$nulls":3},{"$f":"ANNÉE_EC","v":"Exercice 2016"},{"$f":"ANNÉE_EC_2","v":"Exercice 2017"}]
[null,"Type de passif","Description","Année précédente","Année en cours"]
[null,"Passif courant","Comptes fournisseurs",null,350]
[null,"Passif courant","Traitements échus"]
[null,"Passif courant","Rémunérations",500]
[null,"Passif courant","Impôts sur le revenu à payer"]
[null,"Passif courant","Produits reportés"]
[null,"Passif à long terme","Emprunt hypothécaire"]
[null,"Capitaux propres","Capital d’investissement",null,350]
[null,"Capitaux propres","Bénéfices non répartis cumulés"]
[null,"Total du passif et capitaux propres",null,{"$f":"SUBTOTAL(109,Passif[Année précédente])","v":500},{"$f":"SUBTOTAL(109,Passif[Année en cours])","v":700}]

{"sheet":"Catégories","index":3,"n_rows":9,"n_cols":2,"rows_kept":9}
[null,"Catégories"]
[]
[null,"Catégories"]
[null,"Actif courant"]
[null,"Actif immobilisé"]
[null,"Autre actif"]
[null,"Passif courant"]
[null,"Passif à long terme"]
[null,"Capitaux propres"]